fUST/lending_fUST_20250907
["ID","MTS","AMOUNT","RATE_DAILY","PERIOD"]
[383942218,1757188238028,-480.0,0.00013698,2]
[383942219,1757188238038,-476.6248913,0.00013698,2]
[383942221,1757188238051,-3.3751087,0.00013698,2]
[383942222,1757188238060,-1413.15,0.00013698,2]
[383942224,1757188238069,-480.0,0.00013698,2]
[383942225,1757188238079,-1542.88,0.00013698,2]
[383942226,1757188238089,-480.0,0.00013698,2]
[383942227,1757188238098,-480.0,0.00013698,2]
[383942228,1757188238107,-514.21,0.00013698,2]
[383942229,1757188238117,-480.0,0.00013698,2]
[383942230,1757188238127,-480.0,0.00013698,2]
[383942231,1757188238137,-1635.19,0.00013698,2]
[383942232,1757188238147,-480.0,0.00013698,2]
[383942233,1757188238156,-1024.43,0.00013698,2]
[383942234,1757188238166,-256.81044317,0.00013698,2]
[383942235,1757188238176,-776.49,0.00013698,2]
[383942236,1757188238185,-480.0,0.00013698,2]
[383942237,1757188238195,-323.82671436,0.00013699,2]
[383942238,1757188238205,-500.0,0.00013699,2]
[383942239,1757188238214,-195.763111,0.00013699,2]
[383942240,1757188238223,-857.80373,0.00013699,2]
[383942241,1757188238233,-218.77239646,0.00013794,2]
[383942242,1757188238244,-281.22760354,0.00013794,2]
[383942243,1757188238254,-160.0,0.0001385,2]
[383942244,1757188238263,-300.0,0.00013971,2]
[383942245,1757188238273,-300.0,0.00013971,2]
[383942246,1757188238283,-300.0,0.00013971,2]
[383942247,1757188238293,-300.0,0.00013971,2]
[383942248,1757188238302,-300.0,0.00013971,2]
[383942249,1757188238312,-300.0,0.00013971,2]
[383942250,1757188238321,-300.0,0.00013971,2]
[383942251,1757188238331,-300.0,0.00013971,2]
[383942252,1757188238340,-300.0,0.00013971,2]
[383942253,1757188238349,-300.0,0.00013971,2]
[383942254,1757188238359,-300.0,0.00013971,2]
[383942255,1757188238368,-300.0,0.00013971,2]
[383942256,1757188238377,-300.0,0.00013971,2]
[383942257,1757188238386,-300.0,0.00013971,2]
[383942258,1757188238395,-300.0,0.00013971,2]
[383942259,1757188238404,-600.0,0.00013971,2]
[383942260,1757188238414,-480.0,0.00013972,2]
[383942261,1757188238423,-457.94811507,0.00013972,2]
[383942262,1757188238432,-374.40517649,0.00013972,2]
[383942263,1757188238442,-480.0,0.00013972,2]
[383942264,1757188238452,-480.0,0.00013972,2]
[383942265,1757188238462,-230.86921031,0.00013972,2]
[383942266,1757188238477,-249.13078969,0.00013972,2]
[383942267,1757188238487,-750.86921031,0.00013972,2]
[383942268,1757188238499,-0.38078969,0.00013972,2]
[383942269,1757188238508,-480.0,0.00013972,2]
[383942270,1757188238518,-480.0,0.00013972,2]
[383942271,1757188238527,-480.0,0.00013972,2]
[383942272,1757188238538,-480.0,0.00013972,2]
[383942273,1757188238548,-480.0,0.00013972,2]
[383942274,1757188238558,-480.0,0.00013972,2]
[383942275,1757188238569,-480.0,0.00013972,2]
[383942276,1757188238579,-480.0,0.00013972,2]
[383942277,1757188238588,-480.0,0.00013972,2]
[383942278,1757188238598,-480.0,0.00013972,2]
[383942279,1757188238611,-480.0,0.00013972,2]
[383942280,1757188238621,-505.83,0.00013972,2]
[383942281,1757188238630,-556.38,0.00013972,2]
[383942282,1757188238639,-566.54,0.00013972,2]
[383942283,1757188238649,-481.35,0.00013972,2]
[383942284,1757188238659,-480.0,0.00013972,2]
[383942285,1757188238669,-480.0,0.00013972,2]
[383942286,1757188238678,-529.67,0.00013972,2]
[383942287,1757188238688,-509.94,0.00013972,2]
[383942288,1757188238699,-480.0,0.00013972,2]
[383942289,1757188238707,-480.0,0.00013972,2]
[383942290,1757188238717,-480.0,0.00013972,2]
[383942291,1757188238726,-480.0,0.00013972,2]
[383942292,1757188238736,-480.0,0.00013972,2]
[383942293,1757188238746,-480.0,0.00013972,2]
[383942294,1757188238755,-480.0,0.00013972,2]
[383942295,1757188238765,-705.55,0.00013972,2]
[383942296,1757188238774,-480.0,0.00013972,2]
[383942297,1757188238784,-480.0,0.00013972,2]
[383942298,1757188238793,-480.0,0.00013972,2]
[383942299,1757188238802,-3041.38,0.00013972,2]
[383942300,1757188238812,-480.0,0.00013972,2]
[383942301,1757188238821,-480.0,0.00013972,2]
[383942302,1757188238831,-7226.88,0.00013972,2]
[383942303,1757188238841,-553.89,0.00013972,2]
[383942304,1757188238850,-480.0,0.00013972,2]
[383942305,1757188238859,-594.3,0.00013972,2]
[383942306,1757188238868,-556.91,0.00013972,2]
[383942307,1757188238878,-480.0,0.00013972,2]
[383942308,1757188238888,-512.97430716,0.00013972,2]
[383942309,1757188238897,-480.0,0.00013972,2]
[383942310,1757188238907,-480.0,0.00013972,2]
[383942311,1757188238917,-602.49,0.00013972,2]
[383942312,1757188238926,-480.0,0.00013972,2]
[383942313,1757188238936,-740.07,0.00013972,2]
[383942314,1757188238946,-480.0,0.00013972,2]
[383942315,1757188238956,-557.6,0.00013972,2]
[383942316,1757188238966,-1229.74,0.00013972,2]
[383942317,1757188238976,-1289.77,0.00013972,2]
[383942318,1757188238986,-773.17,0.00013972,2]
[383942319,1757188238995,-480.0,0.00013972,2]
[383942320,1757188239006,-2872.85,0.00013972,2]
[383942321,1757188239016,-480.0,0.00013972,2]
[383942322,1757188239026,-480.0,0.00013972,2]
[383942323,1757188239035,-480.0,0.00013972,2]
[383942324,1757188239045,-597.95,0.00013972,2]
[383942325,1757188239054,-451.93342451,0.00013972,2]
[383942371,1757188240173,-28.06657549,0.00013972,2]
[383942373,1757188240183,-480.0,0.00013972,2]
[383942375,1757188240193,-480.0,0.00013972,2]
[383942377,1757188240203,-480.0,0.00013972,2]
[383942379,1757188240213,-1596.78,0.00013972,2]
[383942381,1757188240223,-2565.49171576,0.00013972,2]
[383942388,1757188240278,-287.652443,0.00013972,2]
[383942441,1757188243267,-511.14,0.00013698,2]
[383942442,1757188243277,-708.74,0.00013698,2]
[383942443,1757188243287,-2906.74584124,0.00013972,2]
[383942444,1757188243296,-2769.71,0.00013972,2]
[383942445,1757188243306,-480.0,0.00013972,2]
[383942446,1757188243316,-480.0,0.00013972,2]
[383942447,1757188243326,-480.0,0.00013972,2]
[383942448,1757188243335,-480.0,0.00013972,2]
[383942449,1757188243345,-2038.35,0.00013972,2]
[383942450,1757188243355,-480.0,0.00013972,2]
[383942451,1757188243364,-480.0,0.00013972,2]
[383942452,1757188243374,-1191.28,0.00013972,2]
[383942453,1757188243383,-480.0,0.00013972,2]
[383942454,1757188243392,-1777.18,0.00013972,2]
[383942455,1757188243402,-568.44,0.00013972,2]
[383942457,1757188243411,-806.04,0.00013972,2]
[383942459,1757188243420,-975.38,0.00013972,2]
[383942461,1757188243430,-480.0,0.00013972,2]
[383942464,1757188243440,-480.0,0.00013972,2]
[383942466,1757188243450,-480.0,0.00013972,2]
[383942468,1757188243468,-1149.06,0.00013972,2]
[383942469,1757188243477,-388.34825872,0.00013972,2]
[383942472,1757188243487,-480.0,0.00013972,2]
[383942474,1757188243497,-480.0,0.00013972,2]
[383942475,1757188243507,-480.0,0.00013972,2]
[383942476,1757188243515,-324.00328065,0.00013972,2]
[383942477,1757188243527,-155.99671935,0.00013972,2]
[383942478,1757188243537,-480.0,0.00013972,2]
[383942479,1757188243547,-539.15,0.00013972,2]
[383942480,1757188243556,-480.0,0.00013972,2]
[383942481,1757188243566,-480.0,0.00013972,2]
[383942482,1757188243575,-1423.76,0.00013972,2]
[383942483,1757188243585,-595.52,0.00013972,2]
[383942484,1757188243594,-480.0,0.00013972,2]
[383942485,1757188243604,-733.19,0.00013972,2]
[383942486,1757188243615,-1509.09,0.00013972,2]
[383942487,1757188243624,-480.0,0.00013972,2]
[383942488,1757188243634,-1413.15,0.00013972,2]
[383942489,1757188243644,-480.0,0.00013972,2]
[383942490,1757188243654,-1542.88,0.00013972,2]
[383942491,1757188243664,-480.0,0.00013972,2]
[383942492,1757188243673,-480.0,0.00013972,2]
[383942493,1757188243683,-514.21,0.00013972,2]
[383942494,1757188243693,-480.0,0.00013972,2]
[383942495,1757188243702,-480.0,0.00013972,2]
[383942496,1757188243712,-1635.19,0.00013972,2]
[383942497,1757188243721,-480.0,0.00013972,2]
[383942498,1757188243731,-1024.43,0.00013972,2]
[383942499,1757188243741,-776.49,0.00013972,2]
[383942500,1757188243751,-480.0,0.00013972,2]
[383942501,1757188243761,-511.14,0.00013972,2]
[383942502,1757188243770,-708.74,0.00013972,2]
[383942503,1757188243780,-500.0,0.00013973,2]
[383942504,1757188243789,-500.0,0.00013989,2]
[383942505,1757188243799,-570.89974955,0.00013989,2]
[383942506,1757188243808,-500.0,0.00013989,2]
[383942507,1757188243817,-500.0,0.00013989,2]
[383942508,1757188243827,-500.0,0.00013989,2]
[383942509,1757188243837,-500.0,0.00013989,2]
[383942510,1757188243846,-20406.6754241,0.0001399,2]
[383942511,1757188243858,-2052.48292105,0.0001399,2]
[383942512,1757188243869,-49224.35490372,0.0001399,2]
[383942513,1757188243879,-975.0,0.00013998,2]
[383942514,1757188243889,-2154.0,0.00013998,2]
[383942515,1757188243898,-634.0,0.00013998,2]
[383942516,1757188243909,-3000.0,0.0001404,2]
[383942517,1757188243918,-10572.35515662,0.00014053,2]
[383942518,1757188243928,-163.673,0.0001422,2]
[383942519,1757188243938,-480.0,0.00014246,2]
[383942520,1757188243948,-480.0,0.00014246,2]
[383942521,1757188243958,-480.0,0.00014246,2]
[383942522,1757188243968,-480.0,0.00014246,2]
[383942523,1757188243977,-751.25,0.00014246,2]
[383942524,1757188243988,-480.0,0.00014246,2]
[383942525,1757188243997,-480.0,0.00014246,2]
[383942526,1757188244007,-480.0,0.00014246,2]
[383942527,1757188244016,-480.0,0.00014246,2]
[383942528,1757188244026,-480.0,0.00014246,2]
[383942529,1757188244035,-480.0,0.00014246,2]
[383942530,1757188244046,-480.0,0.00014246,2]
[383942531,1757188244054,-480.0,0.00014246,2]
[383942532,1757188244064,-480.0,0.00014246,2]
[383942533,1757188244074,-480.0,0.00014246,2]
[383942534,1757188244084,-480.0,0.00014246,2]
[383942535,1757188244094,-505.83,0.00014246,2]
[383942536,1757188244105,-556.38,0.00014246,2]
[383942537,1757188244115,-566.54,0.00014246,2]
[383942538,1757188244124,-481.35,0.00014246,2]
[383942539,1757188244135,-480.0,0.00014246,2]
[383942540,1757188244144,-480.0,0.00014246,2]
[383942541,1757188244154,-529.67,0.00014246,2]
[383942542,1757188244164,-509.94,0.00014246,2]
[383942543,1757188244174,-488.2034418,0.00014246,2]
[383942544,1757188244183,-480.0,0.00014246,2]
[383942545,1757188244192,-480.0,0.00014246,2]
[383942546,1757188244202,-480.0,0.00014246,2]
[383942547,1757188244211,-480.0,0.00014246,2]
[383942548,1757188244221,-480.0,0.00014246,2]
[383942549,1757188244230,-480.0,0.00014246,2]
[383942550,1757188244240,-705.55,0.00014246,2]
[383942551,1757188244250,-480.0,0.00014246,2]
[383942552,1757188244259,-480.0,0.00014246,2]
[383942553,1757188244270,-480.0,0.00014246,2]
[383942554,1757188244279,-3041.38,0.00014246,2]
[383942555,1757188244289,-480.0,0.00014246,2]
[383942556,1757188244299,-480.0,0.00014246,2]
[383942557,1757188244308,-7226.88,0.00014246,2]
[383942558,1757188244318,-553.89,0.00014246,2]
[383942559,1757188244327,-480.0,0.00014246,2]
[383942560,1757188244337,-594.3,0.00014246,2]
[383942561,1757188244347,-556.91,0.00014246,2]
[383942562,1757188244356,-342.62958938,0.00014246,2]
[383942563,1757188244366,-480.0,0.00014246,2]
[383942564,1757188244375,-480.0,0.00014246,2]
[383942565,1757188244384,-602.49,0.00014246,2]
[383942566,1757188244394,-480.0,0.00014246,2]
[383942567,1757188244404,-740.07,0.00014246,2]
[383942568,1757188244414,-480.0,0.00014246,2]
[383942569,1757188244423,-1229.74,0.00014246,2]
[383942570,1757188244433,-1289.77,0.00014246,2]
[383942571,1757188244443,-480.0,0.00014246,2]
[383942572,1757188244453,-2872.85,0.00014246,2]
[383942573,1757188244462,-480.0,0.00014246,2]
[383942574,1757188244479,-480.0,0.00014246,2]
[383942575,1757188244489,-480.0,0.00014246,2]
[383942576,1757188244499,-597.95,0.00014246,2]
[383942577,1757188244508,-480.0,0.00014246,2]
[383942578,1757188244519,-480.0,0.00014246,2]
[383942579,1757188244529,-480.0,0.00014246,2]
[383942580,1757188244538,-480.0,0.00014246,2]
[383942581,1757188244548,-1596.78,0.00014246,2]
[383942582,1757188244558,-5759.89,0.00014246,2]
[383942583,1757188244567,-2769.71,0.00014246,2]
[383942584,1757188244577,-480.0,0.00014246,2]
[383942585,1757188244587,-480.0,0.00014246,2]
[383942586,1757188244596,-480.0,0.00014246,2]
[383942587,1757188244610,-480.0,0.00014246,2]
[383942588,1757188244620,-2038.35,0.00014246,2]
[383942589,1757188244629,-480.0,0.00014246,2]
[383942590,1757188244639,-480.0,0.00014246,2]
[383942591,1757188244649,-1191.28,0.00014246,2]
[383942592,1757188244658,-480.0,0.00014246,2]
[383942593,1757188244669,-1777.18,0.00014246,2]
[383942594,1757188244679,-568.44,0.00014246,2]
[383942595,1757188244688,-806.04,0.00014246,2]
[383942596,1757188244698,-975.38,0.00014246,2]
[383942597,1757188244707,-480.0,0.00014246,2]
[383942598,1757188244718,-480.0,0.00014246,2]
[383942599,1757188244728,-480.0,0.00014246,2]
[383942600,1757188244737,-1149.06,0.00014246,2]
[383942601,1757188244746,-480.0,0.00014246,2]
[383942602,1757188244756,-480.0,0.00014246,2]
[383942603,1757188244766,-480.0,0.00014246,2]
[383942604,1757188244776,-480.0,0.00014246,2]
[383942605,1757188244786,-480.0,0.00014246,2]
[383942606,1757188244796,-539.15,0.00014246,2]
[383942607,1757188244805,-480.0,0.00014246,2]
[383942608,1757188244815,-480.0,0.00014246,2]
[383942609,1757188244825,-1423.76,0.00014246,2]
[383942610,1757188244835,-595.52,0.00014246,2]
[383942611,1757188244845,-733.19,0.00014246,2]
[383942612,1757188244854,-1509.09,0.00014246,2]
[383942613,1757188244864,-480.0,0.00014246,2]
[383942614,1757188244874,-1413.15,0.00014246,2]
[383942615,1757188244883,-480.0,0.00014246,2]
[383942616,1757188244893,-1542.88,0.00014246,2]
[383942617,1757188244903,-480.0,0.00014246,2]
[383942618,1757188244913,-480.0,0.00014246,2]
[383942619,1757188244923,-480.0,0.00014246,2]
[383942620,1757188244932,-480.0,0.00014246,2]
[383942621,1757188244942,-1635.19,0.00014246,2]
[383942622,1757188244952,-363.01113956,0.00014246,2]
[383942623,1757188244963,-514.21,0.00014246,2]
[383942624,1757188244972,-1024.43,0.00014246,2]
[383942625,1757188244982,-776.49,0.00014246,2]
[383942626,1757188244992,-480.0,0.00014246,2]
[383942627,1757188245002,-511.14,0.00014246,2]
[383942628,1757188245012,-708.74,0.00014246,2]
[383942629,1757188245023,-821.906,0.00014463,2]
[383942630,1757188245032,-480.0,0.0001452,2]
[383942631,1757188245041,-550.92395151,0.0001452,2]
[383942632,1757188245051,-480.0,0.0001452,2]
[383942633,1757188245061,-480.0,0.0001452,2]
[383942634,1757188245071,-751.25,0.0001452,2]
[383942635,1757188245080,-480.0,0.0001452,2]
[383942636,1757188245090,-480.0,0.0001452,2]
[383942637,1757188245099,-480.0,0.0001452,2]
[383942638,1757188245108,-480.0,0.0001452,2]
[383942639,1757188245118,-480.0,0.0001452,2]
[383942640,1757188245127,-480.0,0.0001452,2]
[383942641,1757188245137,-480.0,0.0001452,2]
[383942642,1757188245147,-480.0,0.0001452,2]
[383942643,1757188245156,-480.0,0.0001452,2]
[383942644,1757188245166,-480.0,0.0001452,2]
[383942645,1757188245175,-480.0,0.0001452,2]
[383942646,1757188245185,-505.83,0.0001452,2]
[383942647,1757188245194,-556.38,0.0001452,2]
[383942648,1757188245204,-566.54,0.0001452,2]
[383942649,1757188245214,-481.35,0.0001452,2]
[383942650,1757188245224,-480.0,0.0001452,2]
[383942651,1757188245233,-480.0,0.0001452,2]
[383942652,1757188245243,-529.67,0.0001452,2]
[383942653,1757188245252,-509.94,0.0001452,2]
[383942654,1757188245262,-480.0,0.0001452,2]
[383942655,1757188245274,-480.0,0.0001452,2]
[383942656,1757188245283,-480.0,0.0001452,2]
[383942657,1757188245448,-480.0,0.0001452,2]
[383942658,1757188245457,-480.0,0.0001452,2]
[383942659,1757188245467,-705.55,0.0001452,2]
[383942660,1757188245477,-480.0,0.0001452,2]
[383942661,1757188245486,-480.0,0.0001452,2]
[383942662,1757188245496,-480.0,0.0001452,2]
[383942663,1757188245505,-3041.38,0.0001452,2]
[383942664,1757188245514,-480.0,0.0001452,2]
[383942665,1757188245524,-480.0,0.0001452,2]
[383942666,1757188245533,-7226.88,0.0001452,2]
[383942667,1757188245542,-553.89,0.0001452,2]
[383942668,1757188245552,-480.0,0.0001452,2]
[383942669,1757188245561,-594.3,0.0001452,2]
[383942671,1757188245571,-556.91,0.0001452,2]
[383942672,1757188245581,-480.0,0.0001452,2]
[383942673,1757188245591,-480.0,0.0001452,2]
[383942674,1757188245603,-602.49,0.0001452,2]
[383942675,1757188245616,-480.0,0.0001452,2]
[383942677,1757188245627,-740.07,0.0001452,2]
[383942678,1757188245636,-384.88230408,0.0001452,2]
[383942679,1757188245646,-1229.74,0.0001452,2]
[383942680,1757188245655,-1289.77,0.0001452,2]
[383942681,1757188245665,-480.0,0.0001452,2]
[383942682,1757188245675,-2872.85,0.0001452,2]
[383942683,1757188245685,-480.0,0.0001452,2]
[383942685,1757188245694,-480.0,0.0001452,2]
[383942686,1757188245703,-480.0,0.0001452,2]
[383942687,1757188245713,-597.95,0.0001452,2]
[383942688,1757188245723,-480.0,0.0001452,2]
[383942689,1757188245732,-480.0,0.0001452,2]
[383942690,1757188245742,-480.0,0.0001452,2]
[383942691,1757188245753,-480.0,0.0001452,2]
[383942692,1757188245761,-1596.78,0.0001452,2]
[383942693,1757188245769,-5759.89,0.0001452,2]
[383942694,1757188245778,-2769.71,0.0001452,2]
[383942695,1757188245786,-480.0,0.0001452,2]
[383942696,1757188245793,-540.57442875,0.0001452,2]
[383942697,1757188245801,-480.0,0.0001452,2]
[383942698,1757188245809,-2038.35,0.0001452,2]
[383942699,1757188245818,-480.0,0.0001452,2]
[383942700,1757188245828,-249.95560322,0.0001452,2]
[383942701,1757188245838,-1191.28,0.0001452,2]
[383942702,1757188245849,-480.0,0.0001452,2]
[383942703,1757188245858,-1777.18,0.0001452,2]
[383942704,1757188245868,-568.44,0.0001452,2]
[383942705,1757188245878,-806.04,0.0001452,2]
[383942706,1757188245888,-975.38,0.0001452,2]
[383942707,1757188245898,-480.0,0.0001452,2]
[383942708,1757188245908,-480.0,0.0001452,2]
[383942709,1757188245918,-480.0,0.0001452,2]
[383942710,1757188245929,-1149.06,0.0001452,2]
[383942711,1757188245938,-480.0,0.0001452,2]
[383942712,1757188245949,-480.0,0.0001452,2]
[383942713,1757188245959,-480.0,0.0001452,2]
[383942714,1757188245969,-480.0,0.0001452,2]
[383942715,1757188245979,-480.0,0.0001452,2]
[383942716,1757188245992,-539.15,0.0001452,2]
[383942717,1757188246002,-480.0,0.0001452,2]
[383942718,1757188246012,-480.0,0.0001452,2]
[383942719,1757188246021,-1423.76,0.0001452,2]
[383942720,1757188246032,-595.52,0.0001452,2]
[383942721,1757188246042,-733.19,0.0001452,2]
[383942722,1757188246052,-1509.09,0.0001452,2]
[383942723,1757188246061,-480.0,0.0001452,2]
[383942724,1757188246071,-1413.15,0.0001452,2]
[383942725,1757188246081,-480.0,0.0001452,2]
[383942726,1757188246091,-1542.88,0.0001452,2]
[383942727,1757188246100,-480.0,0.0001452,2]
[383942728,1757188246110,-480.0,0.0001452,2]
[383942729,1757188246120,-480.0,0.0001452,2]
[383942730,1757188246129,-480.0,0.0001452,2]
[383942731,1757188246139,-1635.19,0.0001452,2]
[383942732,1757188246150,-514.21,0.0001452,2]
[383942733,1757188246160,-1024.43,0.0001452,2]
[383942734,1757188246169,-776.49,0.0001452,2]
[383942735,1757188246180,-480.0,0.0001452,2]
[383942736,1757188246199,-511.14,0.0001452,2]
[383942737,1757188246208,-708.74,0.0001452,2]
[383942738,1757188246217,-500.0,0.00014521,2]
[383942739,1757188246227,-620.5165859,0.00014521,2]
[383942740,1757188246236,-500.0,0.00014564,2]
[383942741,1757188246246,-480.0,0.00014794,2]
[383942742,1757188246256,-480.0,0.00014794,2]
[383942743,1757188246265,-480.0,0.00014794,2]
[383942744,1757188246275,-751.25,0.00014794,2]
[383942745,1757188246284,-480.0,0.00014794,2]
[383942746,1757188246294,-480.0,0.00014794,2]
[383942747,1757188246303,-480.0,0.00014794,2]
[383942748,1757188246313,-480.0,0.00014794,2]
[383942749,1757188246323,-480.0,0.00014794,2]
[383942750,1757188246332,-480.0,0.00014794,2]
[383942751,1757188246342,-201.3565516,0.00014794,2]
[383942752,1757188246352,-335.08494839,0.00014794,2]
[383942753,1757188246361,-480.0,0.00014794,2]
[383942754,1757188246371,-480.0,0.00014794,2]
[383942755,1757188246382,-480.0,0.00014794,2]
[383942756,1757188246391,-505.83,0.00014794,2]
[383942757,1757188246401,-556.38,0.00014794,2]
[383942758,1757188246411,-566.54,0.00014794,2]
[383942759,1757188246420,-481.35,0.00014794,2]
[383942760,1757188246429,-480.0,0.00014794,2]
[383942761,1757188246440,-480.0,0.00014794,2]
[383942762,1757188246450,-529.67,0.00014794,2]
[383942763,1757188246460,-509.94,0.00014794,2]
[383942764,1757188246470,-480.0,0.00014794,2]
[383942765,1757188246481,-480.0,0.00014794,2]
[383942766,1757188246491,-480.0,0.00014794,2]
[383942767,1757188246500,-480.0,0.00014794,2]
[383942768,1757188246509,-480.0,0.00014794,2]
[383942769,1757188246519,-705.55,0.00014794,2]
[383942770,1757188246529,-480.0,0.00014794,2]
[383942772,1757188246538,-480.0,0.00014794,2]
[383942774,1757188246546,-480.0,0.00014794,2]
[383942775,1757188246556,-3041.38,0.00014794,2]
[383942776,1757188246565,-480.0,0.00014794,2]
[383942777,1757188246575,-480.0,0.00014794,2]
[383942778,1757188246584,-7226.88,0.00014794,2]
[383942779,1757188246594,-553.89,0.00014794,2]
[383942780,1757188246605,-480.0,0.00014794,2]
[383942781,1757188246619,-594.3,0.00014794,2]
[383942782,1757188246628,-556.91,0.00014794,2]
[383942783,1757188246637,-480.0,0.00014794,2]
[383942784,1757188246646,-480.0,0.00014794,2]
[383942785,1757188246656,-602.49,0.00014794,2]
[383942786,1757188246666,-480.0,0.00014794,2]
[383942787,1757188246675,-740.07,0.00014794,2]
[383942788,1757188246684,-1229.74,0.00014794,2]
[383942789,1757188246693,-1289.77,0.00014794,2]
[383942790,1757188246703,-480.0,0.00014794,2]
[383942791,1757188246711,-2872.85,0.00014794,2]
[383942792,1757188246720,-480.0,0.00014794,2]
[383942793,1757188246729,-480.0,0.00014794,2]
[383942794,1757188246738,-480.0,0.00014794,2]
[383942795,1757188246748,-597.95,0.00014794,2]
[383942796,1757188246757,-480.0,0.00014794,2]
[383942797,1757188246766,-480.0,0.00014794,2]
[383942798,1757188246775,-480.0,0.00014794,2]
[383942799,1757188246783,-480.0,0.00014794,2]
[383942800,1757188246792,-1596.78,0.00014794,2]
[383942801,1757188246801,-5759.89,0.00014794,2]
[383942802,1757188246810,-2769.71,0.00014794,2]
[383942803,1757188246819,-480.0,0.00014794,2]
[383942804,1757188246828,-480.0,0.00014794,2]
[383942805,1757188246838,-2038.35,0.00014794,2]
[383942806,1757188246847,-480.0,0.00014794,2]
[383942807,1757188246856,-1191.28,0.00014794,2]
[383942808,1757188246864,-480.0,0.00014794,2]
[383942809,1757188246874,-1777.18,0.00014794,2]
[383942810,1757188246882,-568.44,0.00014794,2]
[383942811,1757188246892,-806.04,0.00014794,2]
[383942812,1757188246901,-975.38,0.00014794,2]
[383942813,1757188246910,-480.0,0.00014794,2]
[383942814,1757188246919,-480.0,0.00014794,2]
[383942815,1757188246928,-480.0,0.00014794,2]
[383942816,1757188246938,-1149.06,0.00014794,2]
[383942817,1757188246947,-480.0,0.00014794,2]
[383942818,1757188246956,-480.0,0.00014794,2]
[383942819,1757188246965,-480.0,0.00014794,2]
[383942820,1757188246975,-480.0,0.00014794,2]
[383942821,1757188246984,-480.0,0.00014794,2]
[383942822,1757188246993,-539.15,0.00014794,2]
[383942823,1757188247002,-480.0,0.00014794,2]
[383942824,1757188247011,-480.0,0.00014794,2]
[383942825,1757188247019,-1423.76,0.00014794,2]
[383942826,1757188247031,-595.52,0.00014794,2]
[383942827,1757188247040,-733.19,0.00014794,2]
[383942828,1757188247048,-1509.09,0.00014794,2]
[383942829,1757188247057,-480.0,0.00014794,2]
[383942830,1757188247067,-1413.15,0.00014794,2]
[383942831,1757188247075,-480.0,0.00014794,2]
[383942832,1757188247085,-1542.88,0.00014794,2]
[383942833,1757188247094,-480.0,0.00014794,2]
[383942834,1757188247103,-480.0,0.00014794,2]
[383942835,1757188247112,-480.0,0.00014794,2]
[383942836,1757188247121,-480.0,0.00014794,2]
[383942837,1757188247130,-1635.19,0.00014794,2]
[383942838,1757188247140,-514.21,0.00014794,2]
[383942839,1757188247149,-1024.43,0.00014794,2]
[383942840,1757188247158,-776.49,0.00014794,2]
[383942841,1757188247167,-480.0,0.00014794,2]
[383942842,1757188247176,-511.14,0.00014794,2]